[Event "Live Chess"]
[Site "Chess.com"]
[Date "2023.05.20"]
[Round "-"]
[White "Ferrarifan27"]
[Black "BogdanBeleiUkraine"]
[Result "1-0"]
[WhiteElo "2105"]
[BlackElo "1247"]
[TimeControl "300"]
[EndTime "10:10:40 PDT"]
[Termination "Ferrarifan27 won by resignation"]

1. e4 {[%clk 0:04:59.2]} 1... e5 {[%clk 0:04:58.2]} 2. Nf3 {[%clk 0:04:57.8]}
2... Nc6 {[%clk 0:04:57.1]} 3. Bb5 {[%clk 0:04:56.5]} 3... f6 {[%clk 0:04:54.5]}
4. O-O {[%clk 0:04:53.9]} 4... Bc5 {[%clk 0:04:53.4]} 5. Nc3 {[%clk 0:04:48.9]}
5... a6 {[%clk 0:04:51.6]} 6. Bc4 {[%clk 0:04:47]} 6... Nge7 {[%clk 0:04:49.1]}
7. a3 {[%clk 0:04:45.2]} 7... b5 {[%clk 0:04:47.2]} 8. Ba2 {[%clk 0:04:42.5]}
8... d6 {[%clk 0:04:40.8]} 9. Re1 {[%clk 0:04:30.3]} 9... Bg4 {[%clk 0:04:38.5]}
10. h3 {[%clk 0:04:29]} 10... Bh5 {[%clk 0:04:36]} 11. g4 {[%clk 0:04:22.4]}
11... Bf7 {[%clk 0:04:29.9]} 12. Bxf7+ {[%clk 0:04:20.9]} 12... Kxf7 {[%clk
0:04:28.3]} 13. Nd5 {[%clk 0:04:19.1]} 13... Nd4 {[%clk 0:04:20.6]} 14. Nxd4
{[%clk 0:04:16.9]} 14... Bxd4 {[%clk 0:04:18.9]} 15. Nxe7 {[%clk 0:04:12.8]}
15... Qxe7 {[%clk 0:04:16.7]} 16. c3 {[%clk 0:04:12.4]} 16... Bb6 {[%clk
0:04:14]} 17. d4 {[%clk 0:04:11]} 17... Qe6 {[%clk 0:04:01]} 18. d5 {[%clk
0:04:04.2]} 18... Qd7 {[%clk 0:03:58.9]} 19. Qf3 {[%clk 0:04:00.9]} 19... Rag8
{[%clk 0:03:54]} 20. a4 {[%clk 0:03:52.4]} 20... Ke7 {[%clk 0:03:41.1]} 21. axb5
{[%clk 0:03:50.6]} 21... Qxb5 {[%clk 0:03:39.3]} 22. Qe2 {[%clk 0:03:44.7]}
22... Qxe2 {[%clk 0:03:32.8]} 23. Rxe2 {[%clk 0:03:44.6]} 23... h5 {[%clk
0:03:31.2]} 24. c4 {[%clk 0:03:40.9]} 24... hxg4 {[%clk 0:03:29.4]} 25. hxg4
{[%clk 0:03:30.8]} 25... Rh4 {[%clk 0:03:27.5]} 26. Be3 {[%clk 0:03:14.8]} 26...
Rxg4+ {[%clk 0:03:22.2]} 27. Kf1 {[%clk 0:03:13.9]} 27... Rh8 {[%clk 0:03:17.3]}
28. f3 {[%clk 0:03:07.6]} 28... Rh1+ {[%clk 0:03:03.6]} 29. Kf2 {[%clk
0:03:04.2]} 29... Rh2+ {[%clk 0:02:55.7]} 30. Kf1 {[%clk 0:02:44.4]} 30... Rh1+
{[%clk 0:02:45.6]} 31. Kf2 {[%clk 0:02:43.2]} 31... Bxe3+ {[%clk 0:02:42.9]} 32.
Kxe3 {[%clk 0:02:41.4]} 32... Rxa1 {[%clk 0:02:35.4]} 33. fxg4 {[%clk
0:02:40.1]} 33... Rb1 {[%clk 0:02:30.9]} 34. Rg2 {[%clk 0:02:34.8]} 34... a5
{[%clk 0:02:27.9]} 35. Kd3 {[%clk 0:02:33.8]} 35... Ra1 {[%clk 0:02:20.8]} 36.
g5 {[%clk 0:02:30.4]} 36... Kf7 {[%clk 0:02:16]} 37. g6+ {[%clk 0:02:25.1]}
37... Kg8 {[%clk 0:02:11]} 38. b3 {[%clk 0:02:20.9]} 38... Rd1+ {[%clk
0:02:04.8]} 39. Ke3 {[%clk 0:02:11]} 39... Ra1 {[%clk 0:02:01.4]} 40. Rb2 {[%clk
0:02:07.5]} 40... Ra3 {[%clk 0:01:59.9]} 41. Kf2 {[%clk 0:02:03.5]} 41... Kf8
{[%clk 0:01:56]} 42. Ke2 {[%clk 0:01:55.6]} 42... Ke7 {[%clk 0:01:54.2]} 43. Kd2
{[%clk 0:01:54.1]} 43... Kd7 {[%clk 0:01:50.3]} 44. Kc2 {[%clk 0:01:52.4]} 44...
c6 {[%clk 0:01:46.7]} 45. Kb1 {[%clk 0:01:50.9]} 45... cxd5 {[%clk 0:01:42.8]}
46. cxd5 {[%clk 0:01:50.1]} 46... Kc7 {[%clk 0:01:35.7]} 47. Rc2+ {[%clk
0:01:49.1]} 47... Kb6 {[%clk 0:01:34.1]} 48. Kb2 {[%clk 0:01:48.3]} 48... Ra4
{[%clk 0:01:12]} 49. bxa4 {[%clk 0:01:46.7]} 1-0

[Event "Live Chess"]
[Site "Chess.com"]
[Date "2023.05.20"]
[Round "-"]
[White "Chesscoach_Golichenko"]
[Black "Pablo_dmp"]
[Result "1-0"]
[WhiteElo "2647"]
[BlackElo "1870"]
[TimeControl "300"]
[EndTime "10:10:51 PDT"]
[Termination "Chesscoach_Golichenko won by resignation"]

1. d4 {[%clk 0:04:56.5]} 1... d5 {[%clk 0:04:58]} 2. Nc3 {[%clk 0:04:53.7]} 2...
Nf6 {[%clk 0:04:55.9]} 3. Bf4 {[%clk 0:04:51.6]} 3... c5 {[%clk 0:04:52.2]} 4.
e3 {[%clk 0:04:50.4]} 4... cxd4 {[%clk 0:04:48.9]} 5. exd4 {[%clk 0:04:48.1]}
5... Bg4 {[%clk 0:04:47.9]} 6. f3 {[%clk 0:04:38.9]} 6... Bf5 {[%clk 0:04:35.1]}
7. g4 {[%clk 0:04:34.1]} 7... Bg6 {[%clk 0:04:32]} 8. h4 {[%clk 0:04:31.6]} 8...
h5 {[%clk 0:04:25.6]} 9. g5 {[%clk 0:04:30.4]} 9... Ng8 {[%clk 0:04:23.2]} 10.
Bd3 {[%clk 0:04:20.7]} 10... Bxd3 {[%clk 0:04:18.6]} 11. Qxd3 {[%clk 0:04:20.6]}
11... Nc6 {[%clk 0:04:16.5]} 12. g6 {[%clk 0:04:09.9]} 12... f6 {[%clk
0:04:09.2]} 13. O-O-O {[%clk 0:04:08.7]} 13... e6 {[%clk 0:04:07.1]} 14. Nh3
{[%clk 0:04:03.1]} 14... Bd6 {[%clk 0:04:04.5]} 15. Rhe1 {[%clk 0:04:00.9]}
15... Qd7 {[%clk 0:04:02.5]} 16. Nb5 {[%clk 0:03:49.2]} 16... Bxf4+ {[%clk
0:03:59.7]} 17. Nxf4 {[%clk 0:03:49.1]} 17... Nd8 {[%clk 0:03:37]} 18. Nxe6
{[%clk 0:03:40.7]} 18... Nxe6 {[%clk 0:03:26.6]} 19. Rxe6+ {[%clk 0:03:38.1]}
19... Kd8 {[%clk 0:03:22.4]} 20. Rd6 {[%clk 0:03:33]} 1-0

[Event "Live Chess"]
[Site "Chess.com"]
[Date "2023.05.20"]
[Round "-"]
[White "ms_lilley"]
[Black "wadsy27"]
[Result "0-1"]
[WhiteElo "564"]
[BlackElo "2589"]
[TimeControl "300"]
[EndTime "10:10:51 PDT"]
[Termination "wadsy27 won by checkmate"]

1. d4 {[%clk 0:04:55.2]} 1... f5 {[%clk 0:04:54]} 2. e3 {[%clk 0:04:50.2]} 2...
Nf6 {[%clk 0:04:52.5]} 3. Nf3 {[%clk 0:04:45]} 3... g6 {[%clk 0:04:51.6]} 4. h3
{[%clk 0:04:40.9]} 4... Bg7 {[%clk 0:04:50.8]} 5. Bd3 {[%clk 0:04:38.6]} 5...
O-O {[%clk 0:04:50.4]} 6. O-O {[%clk 0:04:36.9]} 6... d6 {[%clk 0:04:49.7]} 7.
a4 {[%clk 0:04:32.7]} 7... Qe8 {[%clk 0:04:48.9]} 8. b4 {[%clk 0:04:28]} 8... e5
{[%clk 0:04:47.9]} 9. b5 {[%clk 0:04:24.5]} 9... e4 {[%clk 0:04:46.6]} 10. Bc4+
{[%clk 0:04:05.3]} 10... d5 {[%clk 0:04:45.4]} 11. Bxd5+ {[%clk 0:04:00.4]}
11... Nxd5 {[%clk 0:04:44.2]} 12. Nfd2 {[%clk 0:03:56.5]} 12... f4 {[%clk
0:04:41]} 13. f3 {[%clk 0:03:46.3]} 13... Nxe3 {[%clk 0:04:38.9]} 14. Qe2 {[%clk
0:03:41.5]} 14... Nxf1 {[%clk 0:04:38.1]} 15. Qxf1 {[%clk 0:03:39]} 15... Bxd4+
{[%clk 0:04:37.2]} 16. Kh2 {[%clk 0:03:33.5]} 16... Bxa1 {[%clk 0:04:36.3]} 17.
Nxe4 {[%clk 0:03:28.1]} 17... Bf5 {[%clk 0:04:35.3]} 18. Bxf4 {[%clk 0:03:25.2]}
18... Bxe4 {[%clk 0:04:33.1]} 19. Nd2 {[%clk 0:03:19.1]} 19... Rxf4 {[%clk
0:04:30]} 20. Nxe4 {[%clk 0:03:15]} 20... Qxe4 {[%clk 0:04:25.5]} 21. fxe4
{[%clk 0:03:13]} 21... Rxf1 {[%clk 0:04:24.5]} 22. a5 {[%clk 0:03:00.8]} 22...
Be5+ {[%clk 0:04:23.5]} 23. g3 {[%clk 0:02:57.5]} 23... Nd7 {[%clk 0:04:23.4]}
24. h4 {[%clk 0:02:54.7]} 24... Raf8 {[%clk 0:04:23.3]} 25. Kh3 {[%clk 0:02:50]}
25... h5 {[%clk 0:04:21.9]} 26. g4 {[%clk 0:02:47.3]} 26... R8f3+ {[%clk
0:04:19.8]} 27. Kg2 {[%clk 0:02:44.2]} 27... R3f2+ {[%clk 0:04:19.7]} 28. Kh3
{[%clk 0:02:41]} 28... Rh2# {[%clk 0:04:19.6]} 0-1

[Event "Live Chess"]
[Site "Chess.com"]
[Date "2023.05.20"]
[Round "-"]
[White "MartynColebrook"]
[Black "Kr1xot4_XGOD"]
[Result "0-1"]
[WhiteElo "1203"]
[BlackElo "2172"]
[TimeControl "300"]
[EndTime "10:10:56 PDT"]
[Termination "Kr1xot4_XGOD won on time"]

1. e4 {[%clk 0:04:30.6]} 1... e6 {[%clk 0:04:57.3]} 2. d4 {[%clk 0:04:25.1]}
2... d5 {[%clk 0:04:55]} 3. e5 {[%clk 0:04:23.2]} 3... c5 {[%clk 0:04:51.8]} 4.
c3 {[%clk 0:04:21]} 4... Bd7 {[%clk 0:04:49.5]} 5. f4 {[%clk 0:04:14.3]} 5...
Nh6 {[%clk 0:04:45.9]} 6. Bd3 {[%clk 0:04:07.5]} 6... cxd4 {[%clk 0:04:43.1]} 7.
cxd4 {[%clk 0:04:03.9]} 7... Nc6 {[%clk 0:04:42.6]} 8. Nf3 {[%clk 0:03:58.5]}
8... Qb6 {[%clk 0:04:33.9]} 9. Bc2 {[%clk 0:03:22.1]} 9... Nb4 {[%clk
0:04:30.4]} 10. O-O {[%clk 0:03:06.7]} 10... Nxc2 {[%clk 0:04:26.8]} 11. Qxc2
{[%clk 0:02:59.9]} 11... Rc8 {[%clk 0:04:25.7]} 12. Qd1 {[%clk 0:02:48.2]} 12...
Bb4 {[%clk 0:04:18.4]} 13. Bd2 {[%clk 0:02:28.3]} 13... a5 {[%clk 0:04:14.4]}
14. Bxb4 {[%clk 0:02:23.6]} 14... axb4 {[%clk 0:04:13.4]} 15. Nbd2 {[%clk
0:02:16.6]} 15... Bb5 {[%clk 0:04:08.7]} 16. Re1 {[%clk 0:02:13.4]} 16... Nf5
{[%clk 0:04:05.4]} 17. Nb3 {[%clk 0:02:10.4]} 17... h5 {[%clk 0:04:00.4]} 18.
Rc1 {[%clk 0:01:47]} 18... Rxc1 {[%clk 0:03:57]} 19. Qxc1 {[%clk 0:01:43.7]}
19... Bc4 {[%clk 0:03:55.9]} 20. Qd2 {[%clk 0:01:19.4]} 20... Bxb3 {[%clk
0:03:52.2]} 21. axb3 {[%clk 0:01:17.6]} 21... Qa5 {[%clk 0:03:51]} 22. Rc1
{[%clk 0:01:08]} 22... O-O {[%clk 0:03:41.1]} 23. Rc5 {[%clk 0:01:02.8]} 23...
Qa2 {[%clk 0:03:35.3]} 24. Qc2 {[%clk 0:00:52.4]} 24... b6 {[%clk 0:03:24.7]}
25. Rb5 {[%clk 0:00:32.5]} 25... Ne3 {[%clk 0:03:14.9]} 26. Qe2 {[%clk
0:00:19.2]} 26... Qxb3 {[%clk 0:03:11.4]} 27. Rxb6 {[%clk 0:00:16.2]} 27... Ra8
{[%clk 0:03:08]} 28. Kf2 {[%clk 0:00:14.1]} 28... Nc4 {[%clk 0:03:05.1]} 29. Rc6
{[%clk 0:00:11.5]} 29... g6 {[%clk 0:03:00.3]} 30. Rb6 {[%clk 0:00:04.5]} 30...
Nxb6 {[%clk 0:02:57.4]} 0-1

[Event "Live Chess"]
[Site "Chess.com"]
[Date "2023.05.20"]
[Round "-"]
[White "djw60"]
[Black "MaximKhimchenko"]
[Result "1-0"]
[WhiteElo "2139"]
[BlackElo "1366"]
[TimeControl "300"]
[EndTime "10:10:57 PDT"]
[Termination "djw60 won by resignation"]

1. Nf3 {[%clk 0:04:56.6]} 1... Nf6 {[%clk 0:04:55.3]} 2. g3 {[%clk 0:04:53.6]}
2... d5 {[%clk 0:04:53.2]} 3. Bg2 {[%clk 0:04:53.1]} 3... c5 {[%clk 0:04:51.2]}
4. O-O {[%clk 0:04:52.4]} 4... Nc6 {[%clk 0:04:49.7]} 5. d4 {[%clk 0:04:51.3]}
5... cxd4 {[%clk 0:04:45.7]} 6. Nxd4 {[%clk 0:04:49.3]} 6... e5 {[%clk 0:04:45]}
7. Nxc6 {[%clk 0:04:47.9]} 7... bxc6 {[%clk 0:04:44.9]} 8. c4 {[%clk 0:04:47.1]}
8... Bc5 {[%clk 0:04:39.2]} 9. Nc3 {[%clk 0:04:44.5]} 9... Bb7 {[%clk 0:04:36]}
10. Bg5 {[%clk 0:04:39.6]} 10... h6 {[%clk 0:04:33.7]} 11. Bxf6 {[%clk
0:04:37.9]} 11... Qxf6 {[%clk 0:04:33.6]} 12. cxd5 {[%clk 0:04:36.7]} 12... cxd5
{[%clk 0:04:33.5]} 13. Nxd5 {[%clk 0:04:35.3]} 13... Bxd5 {[%clk 0:04:32.1]} 14.
Qxd5 {[%clk 0:04:32.6]} 14... Rc8 {[%clk 0:04:21.6]} 15. Rac1 {[%clk 0:04:25.6]}
15... Qb6 {[%clk 0:04:08]} 16. Qxe5+ {[%clk 0:04:11.8]} 16... Kd7 {[%clk
0:04:05.7]} 17. Rfd1+ {[%clk 0:04:09.5]} 1-0

[Event "Live Chess"]
[Site "Chess.com"]
[Date "2023.05.20"]
[Round "-"]
[White "Jeffaroow"]
[Black "LodeshChess"]
[Result "1-0"]
[WhiteElo "465"]
[BlackElo "888"]
[TimeControl "300"]
[EndTime "10:11:02 PDT"]
[Termination "Jeffaroow won by resignation"]

1. e4 {[%clk 0:04:58.1]} 1... c6 {[%clk 0:04:55.1]} 2. d4 {[%clk 0:04:55.8]}
2... d5 {[%clk 0:04:54.5]} 3. Nc3 {[%clk 0:04:53.4]} 3... dxe4 {[%clk 0:04:53]}
4. Nxe4 {[%clk 0:04:53.3]} 4... Bf5 {[%clk 0:04:52.4]} 5. Bd3 {[%clk 0:04:47.5]}
5... e6 {[%clk 0:04:50.3]} 6. Nf3 {[%clk 0:04:45.4]} 6... Bb4+ {[%clk
0:04:45.4]} 7. Bd2 {[%clk 0:04:40.8]} 7... Qb6 {[%clk 0:04:44.5]} 8. Bxb4 {[%clk
0:04:39]} 8... Qxb4+ {[%clk 0:04:43.4]} 9. c3 {[%clk 0:04:37.1]} 9... Qb6 {[%clk
0:04:19.9]} 10. Nd6+ {[%clk 0:04:24.1]} 10... Kd7 {[%clk 0:04:03.5]} 11. Nxf7
{[%clk 0:04:21.3]} 11... Bxd3 {[%clk 0:03:51.4]} 12. Qxd3 {[%clk 0:04:18.2]}
12... Qxb2 {[%clk 0:03:48.5]} 13. O-O {[%clk 0:04:16]} 13... Qb6 {[%clk
0:03:39.1]} 14. Nxh8 {[%clk 0:04:13.8]} 14... Nh6 {[%clk 0:03:38.6]} 15. Qxh7
{[%clk 0:04:10.3]} 15... Kc7 {[%clk 0:03:25.4]} 16. Qxg7+ {[%clk 0:04:07.1]}
16... Nd7 {[%clk 0:03:25]} 17. Qxh6 {[%clk 0:04:05.3]} 17... Qa5 {[%clk
0:03:19.2]} 18. Nf7 {[%clk 0:04:00.7]} 18... Qxc3 {[%clk 0:03:04.1]} 19. Qxe6
{[%clk 0:03:57.3]} 19... Rg8 {[%clk 0:02:40.3]} 20. Nd6 {[%clk 0:03:47.8]} 20...
Rg7 {[%clk 0:02:19.9]} 21. Ne5 {[%clk 0:03:44.2]} 21... Qxd4 {[%clk 0:02:10.4]}
22. Nxd7 {[%clk 0:03:36]} 22... Rxd7 {[%clk 0:01:56.6]} 23. Rad1 {[%clk
0:03:32.3]} 23... Qg7 {[%clk 0:01:28.8]} 24. Ne8+ {[%clk 0:03:19.5]} 1-0

[Event "Live Chess"]
[Site "Chess.com"]
[Date "2023.05.20"]
[Round "-"]
[White "JohanKjeldahl"]
[Black "BearFromUkraine"]
[Result "1-0"]
[WhiteElo "1762"]
[BlackElo "1136"]
[TimeControl "300"]
[EndTime "10:11:11 PDT"]
[Termination "JohanKjeldahl won by resignation"]

1. e4 {[%clk 0:04:57.2]} 1... e5 {[%clk 0:04:59.3]} 2. Nf3 {[%clk 0:04:55.2]}
2... Nc6 {[%clk 0:04:58.7]} 3. d4 {[%clk 0:04:54.1]} 3... exd4 {[%clk
0:04:55.4]} 4. c3 {[%clk 0:04:52.8]} 4... dxc3 {[%clk 0:04:53.3]} 5. Bc4 {[%clk
0:04:51.7]} 5... Nf6 {[%clk 0:04:50.6]} 6. Nxc3 {[%clk 0:04:48.2]} 6... Be7
{[%clk 0:04:49.6]} 7. O-O {[%clk 0:04:47.5]} 7... O-O {[%clk 0:04:48.5]} 8. h3
{[%clk 0:04:43.9]} 8... d6 {[%clk 0:04:47.5]} 9. Bg5 {[%clk 0:04:38.1]} 9... Be6
{[%clk 0:04:46]} 10. Bxe6 {[%clk 0:04:31.3]} 10... fxe6 {[%clk 0:04:45.9]} 11.
Qb3 {[%clk 0:04:28.7]} 11... Qd7 {[%clk 0:04:23.5]} 12. Rad1 {[%clk 0:04:22.7]}
12... Kh8 {[%clk 0:04:13.8]} 13. e5 {[%clk 0:04:19.5]} 13... Nd5 {[%clk
0:04:01.2]} 14. Nxd5 {[%clk 0:04:15.4]} 14... exd5 {[%clk 0:03:59.8]} 15. Qxd5
{[%clk 0:04:10.4]} 15... Bxg5 {[%clk 0:03:56.3]} 16. Nxg5 {[%clk 0:04:06.5]}
16... Rae8 {[%clk 0:03:33.4]} 17. e6 {[%clk 0:04:03.3]} 17... Qe7 {[%clk
0:03:24.4]} 18. Nf7+ {[%clk 0:04:01.9]} 18... Kg8 {[%clk 0:03:20.6]} 19. Rde1
{[%clk 0:03:46.9]} 19... Ne5 {[%clk 0:02:55.7]} 20. Nxe5 {[%clk 0:03:44.2]}
20... dxe5 {[%clk 0:02:51]} 21. Qxe5 {[%clk 0:03:39.7]} 21... Qf6 {[%clk
0:02:38.5]} 22. f4 {[%clk 0:03:26.4]} 22... Qxe5 {[%clk 0:02:36.9]} 23. Rxe5
{[%clk 0:03:24.8]} 23... Rf6 {[%clk 0:02:30.1]} 24. f5 {[%clk 0:03:20.1]} 24...
Rd8 {[%clk 0:02:21.9]} 25. g4 {[%clk 0:03:14.8]} 25... c6 {[%clk 0:02:16.7]} 26.
g5 {[%clk 0:03:11.2]} 26... Rff8 {[%clk 0:02:13.4]} 27. e7 {[%clk 0:03:09.9]}
1-0

[Event "Live Chess"]
[Site "Chess.com"]
[Date "2023.05.20"]
[Round "-"]
[White "mightysmasher"]
[Black "MaximKris"]
[Result "1-0"]
[WhiteElo "2096"]
[BlackElo "1840"]
[TimeControl "300"]
[EndTime "10:11:11 PDT"]
[Termination "mightysmasher won by checkmate"]

1. e4 {[%clk 0:04:58.3]} 1... e5 {[%clk 0:04:54.3]} 2. Nf3 {[%clk 0:04:56.9]}
2... Nc6 {[%clk 0:04:53.5]} 3. d4 {[%clk 0:04:54.8]} 3... exd4 {[%clk
0:04:51.6]} 4. Nxd4 {[%clk 0:04:54.1]} 4... Nxd4 {[%clk 0:04:50.1]} 5. Qxd4
{[%clk 0:04:53]} 5... Qf6 {[%clk 0:04:49.4]} 6. e5 {[%clk 0:04:52.4]} 6... Qb6
{[%clk 0:04:48]} 7. Qxb6 {[%clk 0:04:51.4]} 7... axb6 {[%clk 0:04:47.9]} 8. Nc3
{[%clk 0:04:50.8]} 8... Bc5 {[%clk 0:04:47]} 9. Bd2 {[%clk 0:04:48.8]} 9... Ne7
{[%clk 0:04:46.3]} 10. O-O-O {[%clk 0:04:47.9]} 10... Nc6 {[%clk 0:04:45.8]} 11.
Bb5 {[%clk 0:04:46.4]} 11... Nd4 {[%clk 0:04:43.6]} 12. Bc4 {[%clk 0:04:44.6]}
12... b5 {[%clk 0:04:38.2]} 13. Be3 {[%clk 0:04:25.4]} 13... bxc4 {[%clk
0:04:19.1]} 14. Bxd4 {[%clk 0:04:19.5]} 14... Bxd4 {[%clk 0:04:03.3]} 15. Rxd4
{[%clk 0:04:18.1]} 15... O-O {[%clk 0:04:02.6]} 16. Rxc4 {[%clk 0:04:16.9]}
16... Re8 {[%clk 0:04:00.2]} 17. Rxc7 {[%clk 0:04:14.3]} 17... Rxe5 {[%clk
0:03:59.4]} 18. f4 {[%clk 0:04:13.2]} 18... Re8 {[%clk 0:03:57.9]} 19. Nd5
{[%clk 0:04:09.3]} 19... Rxa2 {[%clk 0:03:47]} 20. Kb1 {[%clk 0:04:07.6]} 20...
Ra8 {[%clk 0:03:44.4]} 21. Nb6 {[%clk 0:04:05.6]} 21... Rb8 {[%clk 0:03:40.2]}
22. Rd1 {[%clk 0:04:01.2]} 22... Kf8 {[%clk 0:03:36.9]} 23. Nxd7+ {[%clk
0:03:55]} 23... Bxd7 {[%clk 0:03:35.6]} 24. Rdxd7 {[%clk 0:03:54]} 24... Re1+
{[%clk 0:03:30.5]} 25. Ka2 {[%clk 0:03:52.7]} 25... Ra8+ {[%clk 0:03:29.8]} 26.
Kb3 {[%clk 0:03:51.9]} 26... Re3+ {[%clk 0:03:29.2]} 27. c3 {[%clk 0:03:51.1]}
27... Re6 {[%clk 0:03:18.4]} 28. Rxf7+ {[%clk 0:03:49.5]} 28... Ke8 {[%clk
0:03:17.1]} 29. Rxb7 {[%clk 0:03:47]} 29... Rb8 {[%clk 0:03:14.9]} 30. Rxg7
{[%clk 0:03:44.2]} 30... Rxb7+ {[%clk 0:03:13.2]} 31. Rxb7 {[%clk 0:03:42.7]}
31... Rg6 {[%clk 0:03:11.7]} 32. g3 {[%clk 0:03:41]} 32... Rh6 {[%clk
0:03:10.5]} 33. h4 {[%clk 0:03:38.7]} 33... Rg6 {[%clk 0:03:09.5]} 34. Rxh7
{[%clk 0:03:35.5]} 34... Rxg3 {[%clk 0:03:08.3]} 35. h5 {[%clk 0:03:35.1]} 35...
Rf3 {[%clk 0:03:06.1]} 36. h6 {[%clk 0:03:34.2]} 36... Rxf4 {[%clk 0:03:05]} 37.
Ra7 {[%clk 0:03:33]} 37... Rf6 {[%clk 0:02:55.8]} 38. h7 {[%clk 0:03:31.6]}
38... Rb6+ {[%clk 0:02:55.1]} 39. Kc2 {[%clk 0:03:29.4]} 39... Rh6 {[%clk
0:02:54.2]} 40. h8=Q+ {[%clk 0:03:27.6]} 40... Rxh8 {[%clk 0:02:52.6]} 41. Ra8+
{[%clk 0:03:26.6]} 41... Kd7 {[%clk 0:02:52.5]} 42. Rxh8 {[%clk 0:03:25.9]}
42... Kc6 {[%clk 0:02:52.4]} 43. b4 {[%clk 0:03:25.1]} 43... Kb7 {[%clk
0:02:52.3]} 44. c4 {[%clk 0:03:23.9]} 44... Kb6 {[%clk 0:02:52.2]} 45. c5+
{[%clk 0:03:23.4]} 45... Kc6 {[%clk 0:02:52.1]} 46. Rh6+ {[%clk 0:03:22.3]}
46... Kb7 {[%clk 0:02:52]} 47. b5 {[%clk 0:03:21.3]} 47... Kc7 {[%clk
0:02:51.9]} 48. Rh7+ {[%clk 0:03:20.3]} 48... Kb8 {[%clk 0:02:50.6]} 49. c6
{[%clk 0:03:19.6]} 49... Kc8 {[%clk 0:02:50.5]} 50. b6 {[%clk 0:03:18.6]} 50...
Kb8 {[%clk 0:02:50.4]} 51. Rh8# {[%clk 0:03:17.6]} 1-0

[Event "Live Chess"]
[Site "Chess.com"]
[Date "2023.05.20"]
[Round "-"]
[White "KGreenGator"]
[Black "Daniel_Gliddon_FA"]
[Result "1-0"]
[WhiteElo "1768"]
[BlackElo "1050"]
[TimeControl "300"]
[EndTime "10:11:12 PDT"]
[Termination "KGreenGator won by resignation"]

1. c3 {[%clk 0:04:59.3]} 1... e5 {[%clk 0:04:56.3]} 2. d4 {[%clk 0:04:58.6]}
2... Nc6 {[%clk 0:04:45.2]} 3. e3 {[%clk 0:04:55.9]} 3... d5 {[%clk 0:04:42.9]}
4. Nf3 {[%clk 0:04:53.9]} 4... e4 {[%clk 0:04:40.7]} 5. Nfd2 {[%clk 0:04:52.3]}
5... Bf5 {[%clk 0:04:31.8]} 6. a3 {[%clk 0:04:51.2]} 6... Nf6 {[%clk 0:04:29.7]}
7. c4 {[%clk 0:04:50.2]} 7... Qd7 {[%clk 0:04:24.1]} 8. Nc3 {[%clk 0:04:48.7]}
8... O-O-O {[%clk 0:04:18.8]} 9. b4 {[%clk 0:04:46.9]} 9... Bd6 {[%clk
0:04:09.9]} 10. cxd5 {[%clk 0:04:43.7]} 10... Ne7 {[%clk 0:03:56.4]} 11. Bc4
{[%clk 0:04:42.3]} 11... h6 {[%clk 0:03:44.8]} 12. h3 {[%clk 0:04:40.5]} 12...
g5 {[%clk 0:03:42]} 13. Qb3 {[%clk 0:04:36.2]} 13... h5 {[%clk 0:03:30.6]} 14.
Bb5 {[%clk 0:04:35.2]} 14... g4 {[%clk 0:03:02.4]} 15. Bxd7+ {[%clk 0:04:32.3]}
1-0

[Event "Live Chess"]
[Site "Chess.com"]
[Date "2023.05.20"]
[Round "-"]
[White "Davidagye"]
[Black "Ra2orLeaf"]
[Result "1-0"]
[WhiteElo "1672"]
[BlackElo "1134"]
[TimeControl "300"]
[EndTime "10:11:15 PDT"]
[Termination "Davidagye won by resignation"]

1. e4 {[%clk 0:04:57.1]} 1... c5 {[%clk 0:04:59.5]} 2. Nf3 {[%clk 0:04:56]} 2...
Nc6 {[%clk 0:04:59.1]} 3. d4 {[%clk 0:04:55.7]} 3... cxd4 {[%clk 0:04:58]} 4.
Nxd4 {[%clk 0:04:55.6]} 4... e6 {[%clk 0:04:57.2]} 5. Nc3 {[%clk 0:04:55]} 5...
Nxd4 {[%clk 0:04:55.4]} 6. Qxd4 {[%clk 0:04:53.7]} 6... Qb6 {[%clk 0:04:53.2]}
7. Qxb6 {[%clk 0:04:52.4]} 7... axb6 {[%clk 0:04:53.1]} 8. Be3 {[%clk
0:04:51.7]} 8... b5 {[%clk 0:04:50.9]} 9. Bxb5 {[%clk 0:04:50.2]} 9... Bb4
{[%clk 0:04:45.7]} 10. O-O-O {[%clk 0:04:48.1]} 10... Bxc3 {[%clk 0:04:43.3]}
11. bxc3 {[%clk 0:04:47]} 11... Rxa2 {[%clk 0:04:42.9]} 12. Kb1 {[%clk
0:04:46.1]} 12... Ra8 {[%clk 0:04:35.5]} 13. Rd2 {[%clk 0:04:44.6]} 13... Ne7
{[%clk 0:04:34]} 14. Rhd1 {[%clk 0:04:41.6]} 14... O-O {[%clk 0:04:33.2]} 15.
Bxd7 {[%clk 0:04:40.3]} 15... Bxd7 {[%clk 0:04:29.6]} 16. Rxd7 {[%clk
0:04:39.9]} 16... Ng6 {[%clk 0:04:20.5]} 17. Rxb7 {[%clk 0:04:38.7]} 17... Rfc8
{[%clk 0:04:09.2]} 18. Rbd7 {[%clk 0:04:35.8]} 18... Rcb8+ {[%clk 0:04:07.6]}
19. Kc1 {[%clk 0:04:32.6]} 19... Ne5 {[%clk 0:04:03.6]} 20. R7d4 {[%clk
0:04:28.6]} 20... Ra1+ {[%clk 0:03:57.9]} 21. Kd2 {[%clk 0:04:27.3]} 21... Rxd1+
{[%clk 0:03:51.7]} 22. Kxd1 {[%clk 0:04:25.8]} 22... Rb1+ {[%clk 0:03:48.7]} 23.
Kd2 {[%clk 0:04:23.7]} 23... h6 {[%clk 0:03:40.7]} 24. h3 {[%clk 0:04:20.4]}
24... Rg1 {[%clk 0:03:37.1]} 25. g3 {[%clk 0:04:17.3]} 25... Rh1 {[%clk
0:03:35.3]} 26. h4 {[%clk 0:04:15]} 26... Ng4 {[%clk 0:03:27.7]} 27. Rd8+ {[%clk
0:04:12.5]} 27... Kh7 {[%clk 0:03:27]} 28. Rd7 {[%clk 0:04:09.4]} 28... f6
{[%clk 0:03:23.7]} 29. c4 {[%clk 0:04:06]} 29... Rh2 {[%clk 0:03:21.2]} 30. c5
{[%clk 0:04:05.2]} 30... Nxf2 {[%clk 0:03:17.5]} 31. Bxf2 {[%clk 0:04:03.8]}
31... Rxf2+ {[%clk 0:03:16]} 32. Kc3 {[%clk 0:04:03.4]} 32... Rf3+ {[%clk
0:03:09.1]} 33. Kb4 {[%clk 0:04:01.9]} 33... Rxg3 {[%clk 0:03:06]} 34. c6 {[%clk
0:03:58.9]} 34... f5 {[%clk 0:02:58]} 35. exf5 {[%clk 0:03:52.3]} 35... exf5
{[%clk 0:02:54.4]} 36. c7 {[%clk 0:03:51.4]} 36... f4 {[%clk 0:02:52.1]} 1-0